[Event "Titled Tuesday Blitz February 14 Early 2023"]
[White "Liu, Casper"]
[Black "Malka, Samuel"]
[WhiteFideId "1454153"]
[BlackFideId "20643675"]
[WhiteElo "2278"]
[BlackElo "2165"]
[Result "1-0"]
[Round "05"]
[TimeControl "180+2"]
[Date "2023.02.15"]
[WhiteClock "0:01:55"]
[BlackClock "0:00:22"]

1. d4 {[%clk 0:03:00]}  Nf6 {[%clk 0:02:59]} 2. c4 {[%clk 0:03:01]}  g6 {[%clk 0:02:59]} 3. Nc3 {[%clk 0:02:59]}  Bg7 {[%clk 0:02:59]} 4. e4 {[%clk 0:03:00]}  d6 {[%clk 0:02:59]} 5. Nf3 {[%clk 0:03:00]}  O-O {[%clk 0:02:59]} 6. h3 {[%clk 0:02:57]}  e5 {[%clk 0:02:55]} 7. dxe5 {[%clk 0:02:56]}  dxe5 {[%clk 0:02:56]} 8. Qxd8 {[%clk 0:02:56]}  Rxd8 {[%clk 0:02:57]} 9. Bg5 {[%clk 0:02:56]}  Re8 {[%clk 0:02:54]} 10. Bxf6 {[%clk 0:02:55]}  Bxf6 {[%clk 0:02:53]} 11. Nd5 {[%clk 0:02:56]}  Bd8 {[%clk 0:02:53]} 12. O-O-O {[%clk 0:02:57]}  c6 {[%clk 0:02:50]} 13. Nc3 {[%clk 0:02:57]}  Ba5 {[%clk 0:02:41]} 14. a3 {[%clk 0:02:51]}  Bb6 {[%clk 0:02:38]} 15. c5 {[%clk 0:02:45]}  Bxc5 {[%clk 0:02:33]} 16. Nxe5 {[%clk 0:02:45]}  Bxf2 {[%clk 0:02:25]} 17. Bc4 {[%clk 0:02:45]}  Be6 {[%clk 0:01:55]} 18. Bxe6 {[%clk 0:02:19]}  Rxe6 {[%clk 0:01:39]} 19. Rd8+ {[%clk 0:02:17]}  Kg7 {[%clk 0:01:40]} 20. Nd7 {[%clk 0:02:18]}  Rd6 {[%clk 0:01:19]} 21. Rd1 {[%clk 0:02:18]}  Be3+ {[%clk 0:00:51]} 22. Kc2 {[%clk 0:02:17]}  Rxd1 {[%clk 0:00:51]} 23. Nxd1 {[%clk 0:02:17]}  Nxd7 {[%clk 0:00:48]} 24. Rxa8 {[%clk 0:02:17]}  Bb6 {[%clk 0:00:45]} 25. Nc3 {[%clk 0:02:14]}  h5 {[%clk 0:00:36]} 26. b4 {[%clk 0:02:11]}  h4 {[%clk 0:00:35]} 27. Re8 {[%clk 0:02:03]}  Nf6 {[%clk 0:00:35]} 28. Re7 {[%clk 0:01:59]}  Nh5 {[%clk 0:00:35]} 29. Ne2 {[%clk 0:02:00]}  Kf6 {[%clk 0:00:32]} 30. Rxb7 {[%clk 0:02:00]}  Ke5 {[%clk 0:00:27]} 31. Rxf7 {[%clk 0:02:00]}  Kxe4 {[%clk 0:00:27]} 32. a4 {[%clk 0:01:57]}  g5 {[%clk 0:00:23]} 33. a5 {[%clk 0:01:55]}  Be3 {[%clk 0:00:22]} 34. Re7+ {[%clk 0:01:55]} 1-0


[Site "https://www.chess.com"]

[Event "Titled Tuesday Blitz February 14 Early 2023"]
[White "Jimenez, Joaquin"]
[Black "AyMitecK"]
[WhiteFideId "109860"]
[WhiteElo "2195"]
[BlackElo "2484"]
[Result "0-1"]
[Round "05"]
[TimeControl "180+2"]
[Date "2023.02.15"]
[WhiteClock "0:00:07"]
[BlackClock "0:00:08"]

1. e4 {[%clk 0:03:00]}  e6 {[%clk 0:03:00]} 2. d4 {[%clk 0:02:58]}  d5 {[%clk 0:03:00]} 3. Nd2 {[%clk 0:02:58]}  Nf6 {[%clk 0:03:00]} 4. e5 {[%clk 0:02:57]}  Nfd7 {[%clk 0:03:00]} 5. Bd3 {[%clk 0:02:57]}  c5 {[%clk 0:03:00]} 6. c3 {[%clk 0:02:58]}  Nc6 {[%clk 0:03:01]} 7. Ne2 {[%clk 0:02:58]}  cxd4 {[%clk 0:03:01]} 8. cxd4 {[%clk 0:02:59]}  f6 {[%clk 0:03:02]} 9. Nf4 {[%clk 0:02:59]}  Nxd4 {[%clk 0:03:01]} 10. Qh5+ {[%clk 0:02:58]}  Ke7 {[%clk 0:03:02]} 11. Ng6+ {[%clk 0:02:58]}  hxg6 {[%clk 0:03:03]} 12. exf6+ {[%clk 0:02:59]}  Nxf6 {[%clk 0:03:04]} 13. Qxh8 {[%clk 0:02:59]}  Kf7 {[%clk 0:03:04]} 14. f4 {[%clk 0:02:59]}  Nc6 {[%clk 0:03:02]} 15. Qh4 {[%clk 0:02:43]}  Qb6 {[%clk 0:02:57]} 16. Nf3 {[%clk 0:02:30]}  Bb4+ {[%clk 0:02:51]} 17. Kd1 {[%clk 0:02:22]}  Bd7 {[%clk 0:02:04]} 18. Ne5+ {[%clk 0:02:15]}  Kg8 {[%clk 0:02:00]} 19. a3 {[%clk 0:01:42]}  Nxe5 {[%clk 0:01:56]} 20. fxe5 {[%clk 0:01:40]}  Ba4+ {[%clk 0:01:55]} 21. Ke2 {[%clk 0:01:36]}  Ne4 {[%clk 0:01:28]} 22. axb4 {[%clk 0:01:29]}  Qxb4 {[%clk 0:01:24]} 23. Bxe4 {[%clk 0:01:15]}  Bb5+ {[%clk 0:01:23]} 24. Kf3 {[%clk 0:00:55]}  dxe4+ {[%clk 0:01:11]} 25. Kg3 {[%clk 0:00:54]}  Qb3+ {[%clk 0:01:07]} 26. Kg4 {[%clk 0:00:52]}  Be2+ {[%clk 0:01:06]} 27. Kg5 {[%clk 0:00:52]}  Qb5 {[%clk 0:00:37]} 28. Qxe4 {[%clk 0:00:40]}  Rf8 {[%clk 0:00:32]} 29. g4 {[%clk 0:00:35]}  Bf3 {[%clk 0:00:25]} 30. Qd4 {[%clk 0:00:21]}  Bxh1 {[%clk 0:00:17]} 31. Bf4 {[%clk 0:00:20]}  Qe8 {[%clk 0:00:13]} 32. Kh4 {[%clk 0:00:19]}  Bc6 {[%clk 0:00:11]} 33. Rxa7 {[%clk 0:00:18]}  Qf7 {[%clk 0:00:11]} 34. Kg3 {[%clk 0:00:17]}  g5 {[%clk 0:00:11]} 35. Bxg5 {[%clk 0:00:13]}  Qf3+ {[%clk 0:00:12]} 36. Kh4 {[%clk 0:00:13]}  Qg2 {[%clk 0:00:09]} 37. Ra3 {[%clk 0:00:13]}  Qxh2+ {[%clk 0:00:08]} 38. Rh3 {[%clk 0:00:13]}  Qg2 {[%clk 0:00:09]} 39. Qd3 {[%clk 0:00:11]}  Bf3 {[%clk 0:00:07]} 40. Qc4 {[%clk 0:00:08]}  Be2 {[%clk 0:00:06]} 41. Qxe6+ {[%clk 0:00:08]}  Kh7 {[%clk 0:00:07]} 42. Rg3 {[%clk 0:00:08]}  Qh2+ {[%clk 0:00:06]} 43. Rh3 {[%clk 0:00:08]}  Qg2 {[%clk 0:00:07]} 44. Rg3 {[%clk 0:00:08]}  Qf2 {[%clk 0:00:07]} 45. Be3 {[%clk 0:00:07]}  Qh2+ {[%clk 0:00:07]} 46. Rh3 {[%clk 0:00:08]}  Qg2 {[%clk 0:00:08]} 47. Kg5+ {[%clk 0:00:07]}  Qxh3 {[%clk 0:00:07]} 48. Qg6+ {[%clk 0:00:07]}  Kg8 {[%clk 0:00:06]} 49. Qe6+ {[%clk 0:00:07]}  Kh8 {[%clk 0:00:07]} 50. Qe7 {[%clk 0:00:07]}  Qh6# {[%clk 0:00:08]} 0-1


[Site "https://www.chess.com"]

[Event "Titled Tuesday Blitz February 14 Early 2023"]
[White "Fajdetic, Hrvoje"]
[Black "Robledo, Cristian"]
[WhiteFideId "14501945"]
[BlackFideId "133450"]
[WhiteElo "2151"]
[BlackElo "2270"]
[Result "0-1"]
[Round "05"]
[TimeControl "180+2"]
[Date "2023.02.15"]
[WhiteClock "0:00:04"]
[BlackClock "0:00:06"]

1. d4 {[%clk 0:02:16]}  d5 {[%clk 0:02:58]} 2. Bf4 {[%clk 0:02:15]}  c5 {[%clk 0:02:57]} 3. e3 {[%clk 0:02:15]}  Nc6 {[%clk 0:02:57]} 4. Nc3 {[%clk 0:02:15]}  a6 {[%clk 0:02:50]} 5. Nf3 {[%clk 0:02:05]}  Nf6 {[%clk 0:02:31]} 6. dxc5 {[%clk 0:01:58]}  Bg4 {[%clk 0:02:30]} 7. Be2 {[%clk 0:01:58]}  Bxf3 {[%clk 0:02:29]} 8. Bxf3 {[%clk 0:01:59]}  e5 {[%clk 0:02:29]} 9. Bg5 {[%clk 0:01:59]}  e4 {[%clk 0:01:44]} 10. Be2 {[%clk 0:01:50]}  Be7 {[%clk 0:01:39]} 11. O-O {[%clk 0:01:45]}  O-O {[%clk 0:01:37]} 12. a3 {[%clk 0:01:44]}  d4 {[%clk 0:01:25]} 13. Bxf6 {[%clk 0:01:41]}  Bxf6 {[%clk 0:01:25]} 14. Nxe4 {[%clk 0:01:41]}  dxe3 {[%clk 0:01:25]} 15. Nxf6+ {[%clk 0:01:40]}  Qxf6 {[%clk 0:01:26]} 16. fxe3 {[%clk 0:01:23]}  Qxb2 {[%clk 0:01:25]} 17. Rb1 {[%clk 0:01:21]}  Qe5 {[%clk 0:01:23]} 18. Rxb7 {[%clk 0:01:19]}  Qxe3+ {[%clk 0:01:15]} 19. Kh1 {[%clk 0:01:18]}  Rad8 {[%clk 0:01:13]} 20. Bd3 {[%clk 0:01:14]}  Ne5 {[%clk 0:01:12]} 21. Re1 {[%clk 0:00:56]}  Nxd3 {[%clk 0:00:57]} 22. cxd3 {[%clk 0:00:56]}  Rxd3 {[%clk 0:00:53]} 23. Qc1 {[%clk 0:00:55]}  Qd4 {[%clk 0:00:28]} 24. h3 {[%clk 0:00:49]}  Rc3 {[%clk 0:00:28]} 25. Qd1 {[%clk 0:00:16]}  Qxc5 {[%clk 0:00:26]} 26. Qe2 {[%clk 0:00:11]}  Qc6 {[%clk 0:00:21]} 27. Ra7 {[%clk 0:00:08]}  Rxh3+ {[%clk 0:00:20]} 28. Kg1 {[%clk 0:00:08]}  Rc3 {[%clk 0:00:16]} 29. Qe7 {[%clk 0:00:08]}  Qb6+ {[%clk 0:00:13]} 30. Kf1 {[%clk 0:00:05]}  Qb5+ {[%clk 0:00:13]} 31. Re2 {[%clk 0:00:04]}  Rc1+ {[%clk 0:00:11]} 32. Kf2 {[%clk 0:00:04]}  Qf5+ {[%clk 0:00:11]} 33. Kg3 {[%clk 0:00:04]}  Rc3+ {[%clk 0:00:09]} 34. Kh2 {[%clk 0:00:05]}  Qh5+ {[%clk 0:00:08]} 35. Kg1 {[%clk 0:00:04]}  Rc1+ {[%clk 0:00:08]} 36. Kf2 {[%clk 0:00:05]}  Qf5+ {[%clk 0:00:06]} 37. Kg3 {[%clk 0:00:05]}  Qg6+ {[%clk 0:00:05]} 38. Kh2 {[%clk 0:00:05]}  Qh5+ {[%clk 0:00:04]} 39. Kg3 {[%clk 0:00:06]}  Rc3+ {[%clk 0:00:02]} 40. Kf2 {[%clk 0:00:06]}  Qc5+ {[%clk 0:00:02]} 41. Qxc5 {[%clk 0:00:05]}  Rxc5 {[%clk 0:00:03]} 42. Rxa6 {[%clk 0:00:04]}  g6 {[%clk 0:00:04]} 43. Re7 {[%clk 0:00:04]}  Rf5+ {[%clk 0:00:05]} 44. Kg3 {[%clk 0:00:03]}  Rd8 {[%clk 0:00:05]} 45. Raa7 {[%clk 0:00:04]}  Rd3+ {[%clk 0:00:05]} 46. Kh2 {[%clk 0:00:05]}  h5 {[%clk 0:00:05]} 47. Re8+ {[%clk 0:00:06]}  Kg7 {[%clk 0:00:04]} 48. Raa8 {[%clk 0:00:07]}  Rd2 {[%clk 0:00:04]} 49. Rg8+ {[%clk 0:00:07]}  Kf6 {[%clk 0:00:04]} 50. Ra6+ {[%clk 0:00:07]}  Kg5 {[%clk 0:00:04]} 51. Re8 {[%clk 0:00:03]}  Rff2 {[%clk 0:00:04]} 52. Re5+ {[%clk 0:00:03]}  Kh6 {[%clk 0:00:05]} 53. Re7 {[%clk 0:00:03]}  Rxg2+ {[%clk 0:00:05]} 54. Kh1 {[%clk 0:00:03]}  Rgf2 {[%clk 0:00:05]} 55. Re1 {[%clk 0:00:04]}  h4 {[%clk 0:00:05]} 56. Rc1 {[%clk 0:00:03]}  h3 {[%clk 0:00:05]} 57. Ra8 {[%clk 0:00:04]}  Rh2+ {[%clk 0:00:04]} 58. Kg1 {[%clk 0:00:03]}  Rdg2+ {[%clk 0:00:05]} 59. Kf1 {[%clk 0:00:04]}  Rh1# {[%clk 0:00:06]} 0-1


[Site "https://www.chess.com"]

[Event "Titled Tuesday Blitz February 14 Early 2023"]
[White "Zampronha, Wladimir Camilo"]
[Black "Jovic, Stanoje"]
[WhiteFideId "2103087"]
[BlackFideId "905020"]
[WhiteElo "2176"]
[BlackElo "2075"]
[Result "0-1"]
[Round "05"]
[TimeControl "180+2"]
[Date "2023.02.15"]
[WhiteClock "0:00:06"]
[BlackClock "0:00:50"]

1. e4 {[%clk 0:03:00]}  c6 {[%clk 0:02:59]} 2. Nf3 {[%clk 0:03:01]}  d5 {[%clk 0:02:59]} 3. exd5 {[%clk 0:03:01]}  cxd5 {[%clk 0:02:59]} 4. d4 {[%clk 0:03:02]}  Nc6 {[%clk 0:02:59]} 5. Bd3 {[%clk 0:03:01]}  Bg4 {[%clk 0:02:58]} 6. c3 {[%clk 0:03:00]}  e6 {[%clk 0:02:58]} 7. O-O {[%clk 0:03:00]}  Bd6 {[%clk 0:02:58]} 8. Nbd2 {[%clk 0:03:00]}  Qc7 {[%clk 0:02:57]} 9. h3 {[%clk 0:02:59]}  Bh5 {[%clk 0:02:57]} 10. Re1 {[%clk 0:02:59]}  Nf6 {[%clk 0:02:57]} 11. Qc2 {[%clk 0:02:55]}  O-O {[%clk 0:02:55]} 12. Be2 {[%clk 0:02:41]}  Rac8 {[%clk 0:02:50]} 13. a3 {[%clk 0:02:34]}  Rfe8 {[%clk 0:02:41]} 14. Qd1 {[%clk 0:02:27]}  Bg6 {[%clk 0:02:31]} 15. Nf1 {[%clk 0:02:20]}  Ne4 {[%clk 0:02:28]} 16. N3d2 {[%clk 0:02:04]}  e5 {[%clk 0:02:26]} 17. Nxe4 {[%clk 0:02:00]}  dxe4 {[%clk 0:02:25]} 18. dxe5 {[%clk 0:02:00]}  Nxe5 {[%clk 0:02:22]} 19. Ne3 {[%clk 0:01:50]}  Nd3 {[%clk 0:02:21]} 20. Rf1 {[%clk 0:01:44]}  a5 {[%clk 0:02:15]} 21. Bxd3 {[%clk 0:01:21]}  exd3 {[%clk 0:02:14]} 22. Bd2 {[%clk 0:01:21]}  b5 {[%clk 0:02:11]} 23. b4 {[%clk 0:01:20]}  a4 {[%clk 0:02:10]} 24. Rc1 {[%clk 0:01:14]}  Bh2+ {[%clk 0:01:46]} 25. Kh1 {[%clk 0:01:13]}  Bf4 {[%clk 0:01:46]} 26. c4 {[%clk 0:01:07]}  Bxe3 {[%clk 0:01:32]} 27. cxb5 {[%clk 0:01:06]}  Qb7 {[%clk 0:01:26]} 28. Rxc8 {[%clk 0:01:05]}  Rxc8 {[%clk 0:01:25]} 29. Bxe3 {[%clk 0:01:06]}  Qxb5 {[%clk 0:01:25]} 30. Qg4 {[%clk 0:00:59]}  Rc2 {[%clk 0:01:18]} 31. Qd4 {[%clk 0:00:47]}  h6 {[%clk 0:01:12]} 32. Rd1 {[%clk 0:00:44]}  Ra2 {[%clk 0:01:07]} 33. Rc1 {[%clk 0:00:30]}  Rc2 {[%clk 0:01:03]} 34. Rd1 {[%clk 0:00:29]}  Qh5 {[%clk 0:01:01]} 35. g4 {[%clk 0:00:18]}  Qxh3+ {[%clk 0:00:56]} 36. Kg1 {[%clk 0:00:16]}  Qf3 {[%clk 0:00:55]} 37. Qd8+ {[%clk 0:00:05]}  Kh7 {[%clk 0:00:54]} 38. Rxd3 {[%clk 0:00:06]}  Be4 {[%clk 0:00:50]} 0-1


[Site "https://www.chess.com"]

[Event "Titled Tuesday Blitz February 14 Early 2023"]
[White "Weisz, Bryan"]
[Black "Escalona Landi, Samid Eduardo"]
[WhiteFideId "30934133"]
[BlackFideId "3937437"]
[WhiteElo "1973"]
[BlackElo "2218"]
[Result "0-1"]
[Round "05"]
[TimeControl "180+2"]
[Date "2023.02.15"]
[WhiteClock "0:00:09"]
[BlackClock "0:00:50"]

1. e4 {[%clk 0:03:00]}  c5 {[%clk 0:02:58]} 2. Nf3 {[%clk 0:03:01]}  d6 {[%clk 0:02:58]} 3. d4 {[%clk 0:03:01]}  cxd4 {[%clk 0:02:58]} 4. Nxd4 {[%clk 0:03:01]}  Nf6 {[%clk 0:02:59]} 5. Nc3 {[%clk 0:03:02]}  Nc6 {[%clk 0:02:59]} 6. Bg5 {[%clk 0:03:01]}  Bd7 {[%clk 0:03:00]} 7. Bxf6 {[%clk 0:02:58]}  gxf6 {[%clk 0:03:01]} 8. g3 {[%clk 0:02:51]}  e6 {[%clk 0:02:56]} 9. Bg2 {[%clk 0:02:51]}  a6 {[%clk 0:02:44]} 10. O-O {[%clk 0:02:51]}  h5 {[%clk 0:02:43]} 11. Re1 {[%clk 0:02:46]}  Qb6 {[%clk 0:02:25]} 12. Nf5 {[%clk 0:02:32]}  Ne5 {[%clk 0:02:18]} 13. Qd4 {[%clk 0:02:20]}  Qxd4 {[%clk 0:02:17]} 14. Nxd4 {[%clk 0:02:20]}  Rc8 {[%clk 0:02:16]} 15. Rad1 {[%clk 0:02:04]}  h4 {[%clk 0:02:12]} 16. Nde2 {[%clk 0:01:54]}  Be7 {[%clk 0:01:53]} 17. b3 {[%clk 0:01:49]}  b5 {[%clk 0:01:51]} 18. f4 {[%clk 0:01:43]}  Ng4 {[%clk 0:01:37]} 19. Rd3 {[%clk 0:01:40]}  hxg3 {[%clk 0:01:30]} 20. hxg3 {[%clk 0:01:11]}  Bd8 {[%clk 0:01:30]} 21. Bf3 {[%clk 0:00:28]}  Bb6+ {[%clk 0:01:26]} 22. Kf1 {[%clk 0:00:28]}  Ne3+ {[%clk 0:01:16]} 23. Rxe3 {[%clk 0:00:27]}  Bxe3 {[%clk 0:01:17]} 24. Rd1 {[%clk 0:00:19]}  Ke7 {[%clk 0:01:10]} 25. f5 {[%clk 0:00:17]}  b4 {[%clk 0:01:09]} 26. fxe6 {[%clk 0:00:17]}  fxe6 {[%clk 0:01:07]} 27. Rd3 {[%clk 0:00:13]}  Ba7 {[%clk 0:01:03]} 28. Nd1 {[%clk 0:00:12]}  Rxc2 {[%clk 0:01:01]} 29. Nf4 {[%clk 0:00:13]}  Bb5 {[%clk 0:01:00]} 30. Ng6+ {[%clk 0:00:11]}  Kd7 {[%clk 0:00:57]} 31. Be2 {[%clk 0:00:11]}  Rh2 {[%clk 0:00:55]} 32. Nf4 {[%clk 0:00:09]}  Bxd3 {[%clk 0:00:53]} 33. Bxd3 {[%clk 0:00:09]}  Rc1 {[%clk 0:00:52]} 34. Ke1 {[%clk 0:00:08]}  Rh1+ {[%clk 0:00:50]} 35. Bf1 {[%clk 0:00:09]}  Rxd1+ {[%clk 0:00:50]} 36. Kxd1 {[%clk 0:00:08]}  Rxf1+ {[%clk 0:00:50]} 37. Ke2 {[%clk 0:00:09]}  Ra1 {[%clk 0:00:50]} 0-1


[Site "https://www.chess.com"]

[Event "Titled Tuesday Blitz February 14 Early 2023"]
[White "Saravana, Krishnan P."]
[Black "Skaric, Djuro"]
[WhiteFideId "5018382"]
[BlackFideId "934569"]
[WhiteElo "2284"]
[BlackElo "2334"]
[Result "1-0"]
[Round "05"]
[TimeControl "180+2"]
[Date "2023.02.15"]
[WhiteClock "0:01:19"]
[BlackClock "0:01:23"]

1. e4 {[%clk 0:02:56]}  d6 {[%clk 0:03:00]} 2. d4 {[%clk 0:02:55]}  g6 {[%clk 0:03:01]} 3. Nc3 {[%clk 0:02:56]}  Bg7 {[%clk 0:03:01]} 4. Be2 {[%clk 0:02:54]}  Nf6 {[%clk 0:03:02]} 5. h4 {[%clk 0:02:54]}  h5 {[%clk 0:03:01]} 6. Bg5 {[%clk 0:02:54]}  O-O {[%clk 0:03:01]} 7. Qd2 {[%clk 0:02:54]}  Nc6 {[%clk 0:03:01]} 8. O-O-O {[%clk 0:02:54]}  Kh7 {[%clk 0:02:59]} 9. f3 {[%clk 0:02:53]}  a6 {[%clk 0:02:58]} 10. Nh3 {[%clk 0:02:53]}  b5 {[%clk 0:02:55]} 11. Nd5 {[%clk 0:02:53]}  e6 {[%clk 0:02:44]} 12. Nxf6+ {[%clk 0:02:31]}  Bxf6 {[%clk 0:02:44]} 13. Kb1 {[%clk 0:02:30]}  e5 {[%clk 0:02:41]} 14. d5 {[%clk 0:02:28]}  Nb8 {[%clk 0:02:37]} 15. Rc1 {[%clk 0:02:26]}  Nd7 {[%clk 0:02:36]} 16. c4 {[%clk 0:02:24]}  bxc4 {[%clk 0:02:35]} 17. Bxc4 {[%clk 0:02:20]}  a5 {[%clk 0:02:35]} 18. Bb5 {[%clk 0:02:17]}  Bxg5 {[%clk 0:02:33]} 19. Qxg5 {[%clk 0:02:12]}  Kg7 {[%clk 0:02:31]} 20. Qxd8 {[%clk 0:02:11]}  Rxd8 {[%clk 0:02:30]} 21. Rxc7 {[%clk 0:02:11]}  Nc5 {[%clk 0:02:29]} 22. Ng5 {[%clk 0:02:11]}  Rf8 {[%clk 0:02:28]} 23. Rc1 {[%clk 0:02:10]}  Rb8 {[%clk 0:02:24]} 24. a4 {[%clk 0:02:09]}  Kg8 {[%clk 0:02:15]} 25. Ra7 {[%clk 0:01:54]}  f6 {[%clk 0:02:00]} 26. Ne6 {[%clk 0:01:52]}  Nxe6 {[%clk 0:01:49]} 27. Rxc8 {[%clk 0:01:39]}  Rfxc8 {[%clk 0:01:41]} 28. dxe6 {[%clk 0:01:39]}  Re8 {[%clk 0:01:36]} 29. Bxe8 {[%clk 0:01:34]}  Rxe8 {[%clk 0:01:35]} 30. Rxa5 {[%clk 0:01:30]}  Rxe6 {[%clk 0:01:35]} 31. Ra7 {[%clk 0:01:30]}  g5 {[%clk 0:01:35]} 32. a5 {[%clk 0:01:26]}  g4 {[%clk 0:01:27]} 33. Rd7 {[%clk 0:01:24]}  f5 {[%clk 0:01:23]} 34. exf5 {[%clk 0:01:22]}  Rf6 {[%clk 0:01:23]} 35. a6 {[%clk 0:01:21]}  Rxf5 {[%clk 0:01:23]} 36. a7 {[%clk 0:01:20]}  Rf8 {[%clk 0:01:23]} 37. Rb7 {[%clk 0:01:19]} 1-0


[Site "https://www.chess.com"]

[Event "Titled Tuesday Blitz February 14 Early 2023"]
[White "Matveeva, Olga"]
[Black "Injac, Teodora"]
[WhiteFideId "24107018"]
[BlackFideId "932400"]
[WhiteElo "2128"]
[BlackElo "2391"]
[Result "1-0"]
[Round "05"]
[TimeControl "180+2"]
[Date "2023.02.15"]
[WhiteClock "0:00:03"]
[BlackClock "0:00:03"]

1. d4 {[%clk 0:03:00]}  Nf6 {[%clk 0:02:59]} 2. c4 {[%clk 0:03:00]}  e6 {[%clk 0:02:59]} 3. g3 {[%clk 0:03:00]}  Bb4+ {[%clk 0:02:56]} 4. Bd2 {[%clk 0:03:00]}  a5 {[%clk 0:02:56]} 5. Bg2 {[%clk 0:02:59]}  O-O {[%clk 0:02:56]} 6. e4 {[%clk 0:02:59]}  d6 {[%clk 0:02:54]} 7. Ne2 {[%clk 0:02:58]}  e5 {[%clk 0:02:50]} 8. O-O {[%clk 0:02:55]}  Bxd2 {[%clk 0:02:48]} 9. Qxd2 {[%clk 0:02:53]}  Nc6 {[%clk 0:02:37]} 10. Nbc3 {[%clk 0:02:50]}  exd4 {[%clk 0:02:31]} 11. Nxd4 {[%clk 0:02:51]}  Nxd4 {[%clk 0:02:31]} 12. Qxd4 {[%clk 0:02:51]}  Re8 {[%clk 0:02:30]} 13. Rfe1 {[%clk 0:02:50]}  a4 {[%clk 0:02:29]} 14. Rad1 {[%clk 0:02:43]}  Bg4 {[%clk 0:02:24]} 15. f3 {[%clk 0:02:39]}  Bd7 {[%clk 0:02:24]} 16. c5 {[%clk 0:02:31]}  Ra6 {[%clk 0:01:50]} 17. Bf1 {[%clk 0:02:07]}  Rc6 {[%clk 0:01:50]} 18. Nxa4 {[%clk 0:01:54]}  Qa8 {[%clk 0:01:10]} 19. Bb5 {[%clk 0:01:35]}  dxc5 {[%clk 0:01:09]} 20. Qc4 {[%clk 0:00:38]}  Rd6 {[%clk 0:00:59]} 21. Nxc5 {[%clk 0:00:25]}  Bxb5 {[%clk 0:00:36]} 22. Qxb5 {[%clk 0:00:26]}  Rb6 {[%clk 0:00:36]} 23. Qc4 {[%clk 0:00:17]}  Rxb2 {[%clk 0:00:08]} 24. a4 {[%clk 0:00:17]}  Qa5 {[%clk 0:00:06]} 25. e5 {[%clk 0:00:13]}  h6 {[%clk 0:00:05]} 26. Kf1 {[%clk 0:00:08]}  Nh7 {[%clk 0:00:05]} 27. e6 {[%clk 0:00:06]}  fxe6 {[%clk 0:00:04]} 28. Rxe6 {[%clk 0:00:06]}  Kf8 {[%clk 0:00:01]} 29. Qf4+ {[%clk 0:00:05]}  Nf6 {[%clk 0:00:01]} 30. Rxf6+ {[%clk 0:00:02]}  gxf6 {[%clk 0:00:01]} 31. Qxf6+ {[%clk 0:00:03]}  Kg8 {[%clk 0:00:02]} 32. Qg6+ {[%clk 0:00:04]}  Kf8 {[%clk 0:00:02]} 33. Nd7+ {[%clk 0:00:03]}  Ke7 {[%clk 0:00:03]} 34. Qf6# {[%clk 0:00:03]} 1-0


[Site "https://www.chess.com"]

[Event "Titled Tuesday Blitz February 14 Early 2023"]
[White "Alinasab, Mobina"]
[Black "Vifleemskaia, Svetlana"]
[WhiteFideId "12528897"]
[BlackFideId "4129490"]
[WhiteElo "2347"]
[BlackElo "1971"]
[Result "1-0"]
[Round "05"]
[TimeControl "180+2"]
[Date "2023.02.15"]
[WhiteClock "0:00:46"]
[BlackClock "0:00:03"]

1. e4 {[%clk 0:03:00]}  e5 {[%clk 0:02:58]} 2. Nf3 {[%clk 0:03:00]}  Nc6 {[%clk 0:02:53]} 3. Bb5 {[%clk 0:02:58]}  a6 {[%clk 0:02:50]} 4. Ba4 {[%clk 0:02:58]}  Nf6 {[%clk 0:02:49]} 5. O-O {[%clk 0:02:57]}  Be7 {[%clk 0:02:45]} 6. Qe2 {[%clk 0:02:54]}  b5 {[%clk 0:02:44]} 7. Bb3 {[%clk 0:02:53]}  d6 {[%clk 0:02:44]} 8. c3 {[%clk 0:02:53]}  O-O {[%clk 0:02:42]} 9. d4 {[%clk 0:02:49]}  exd4 {[%clk 0:02:35]} 10. cxd4 {[%clk 0:02:49]}  Na5 {[%clk 0:02:34]} 11. Bc2 {[%clk 0:02:48]}  Bg4 {[%clk 0:02:31]} 12. h3 {[%clk 0:02:48]}  Bh5 {[%clk 0:02:26]} 13. Nc3 {[%clk 0:02:42]}  c5 {[%clk 0:02:15]} 14. g4 {[%clk 0:02:37]}  Bg6 {[%clk 0:02:13]} 15. Rd1 {[%clk 0:02:36]}  cxd4 {[%clk 0:02:10]} 16. Nxd4 {[%clk 0:02:37]}  Qc7 {[%clk 0:01:42]} 17. Bg5 {[%clk 0:02:28]}  h6 {[%clk 0:01:38]} 18. Bxf6 {[%clk 0:02:12]}  Bxf6 {[%clk 0:01:37]} 19. Nd5 {[%clk 0:02:13]}  Qd8 {[%clk 0:01:35]} 20. Qd2 {[%clk 0:01:50]}  Nc4 {[%clk 0:01:27]} 21. Qb4 {[%clk 0:01:44]}  Bxd4 {[%clk 0:01:10]} 22. Rxd4 {[%clk 0:01:41]}  Qh4 {[%clk 0:01:10]} 23. Kg2 {[%clk 0:01:34]}  h5 {[%clk 0:01:04]} 24. f3 {[%clk 0:01:23]}  Rac8 {[%clk 0:00:46]} 25. Qe1 {[%clk 0:01:11]}  Qxe1 {[%clk 0:00:41]} 26. Rxe1 {[%clk 0:01:12]}  Rfe8 {[%clk 0:00:30]} 27. b3 {[%clk 0:01:08]}  Ne5 {[%clk 0:00:26]} 28. Re2 {[%clk 0:01:02]}  hxg4 {[%clk 0:00:17]} 29. hxg4 {[%clk 0:01:02]}  Kf8 {[%clk 0:00:14]} 30. Kg3 {[%clk 0:01:02]}  f6 {[%clk 0:00:07]} 31. Nf4 {[%clk 0:00:54]}  Bf7 {[%clk 0:00:02]} 32. Rxd6 {[%clk 0:00:53]}  Rc3 {[%clk 0:00:03]} 33. Nd3 {[%clk 0:00:46]} 1-0


[Site "https://www.chess.com"]

[Event "Titled Tuesday Blitz February 14 Early 2023"]
[White "Kostiukov, Alexandr"]
[Black "Orzech, Dominik"]
[WhiteFideId "14108100"]
[BlackFideId "1115065"]
[WhiteElo "2271"]
[BlackElo "2308"]
[Result "1-0"]
[Round "05"]
[TimeControl "180+2"]
[Date "2023.02.15"]
[WhiteClock "0:00:21"]
[BlackClock "0:00:02"]

1. g3 {[%clk 0:02:29]}  Nf6 {[%clk 0:02:56]} 2. c4 {[%clk 0:02:28]}  g6 {[%clk 0:02:56]} 3. Bg2 {[%clk 0:02:29]}  Bg7 {[%clk 0:02:56]} 4. Nf3 {[%clk 0:02:29]}  O-O {[%clk 0:02:55]} 5. O-O {[%clk 0:02:29]}  Nc6 {[%clk 0:02:55]} 6. d4 {[%clk 0:02:29]}  Rb8 {[%clk 0:02:52]} 7. Nc3 {[%clk 0:02:24]}  b6 {[%clk 0:02:36]} 8. Bf4 {[%clk 0:02:22]}  Bb7 {[%clk 0:02:33]} 9. d5 {[%clk 0:02:19]}  Na5 {[%clk 0:02:30]} 10. Qd3 {[%clk 0:02:13]}  Ba6 {[%clk 0:02:24]} 11. b3 {[%clk 0:02:11]}  Nb7 {[%clk 0:01:59]} 12. Nd4 {[%clk 0:02:04]}  Nc5 {[%clk 0:01:58]} 13. Qd2 {[%clk 0:02:02]}  d6 {[%clk 0:01:48]} 14. Nc6 {[%clk 0:02:00]}  Qd7 {[%clk 0:01:42]} 15. Nxb8 {[%clk 0:02:00]}  Rxb8 {[%clk 0:01:41]} 16. Rad1 {[%clk 0:01:57]}  Qf5 {[%clk 0:01:31]} 17. e4 {[%clk 0:01:51]}  Ncxe4 {[%clk 0:01:22]} 18. Nxe4 {[%clk 0:01:50]}  Nxe4 {[%clk 0:01:21]} 19. Bxe4 {[%clk 0:01:45]}  Qxe4 {[%clk 0:01:18]} 20. Rfe1 {[%clk 0:01:46]}  Qf3 {[%clk 0:01:06]} 21. Rxe7 {[%clk 0:01:38]}  Rf8 {[%clk 0:00:53]} 22. Rde1 {[%clk 0:01:37]}  Bc8 {[%clk 0:00:48]} 23. Qe3 {[%clk 0:01:32]}  Qg4 {[%clk 0:00:41]} 24. Re8 {[%clk 0:01:25]}  Bf5 {[%clk 0:00:39]} 25. Rxf8+ {[%clk 0:01:23]}  Bxf8 {[%clk 0:00:39]} 26. Qe8 {[%clk 0:00:58]}  Qh3 {[%clk 0:00:38]} 27. f3 {[%clk 0:00:55]}  Bd3 {[%clk 0:00:18]} 28. Qe3 {[%clk 0:00:37]}  Bf5 {[%clk 0:00:16]} 29. g4 {[%clk 0:00:34]}  Bc8 {[%clk 0:00:08]} 30. Qe8 {[%clk 0:00:30]}  Bxg4 {[%clk 0:00:08]} 31. fxg4 {[%clk 0:00:30]}  Qxg4+ {[%clk 0:00:08]} 32. Bg3 {[%clk 0:00:30]}  Qd4+ {[%clk 0:00:05]} 33. Kh1 {[%clk 0:00:29]}  Qd2 {[%clk 0:00:03]} 34. Qe3 {[%clk 0:00:24]}  Qxa2 {[%clk 0:00:02]} 35. Bf4 {[%clk 0:00:21]} 1-0


[Site "https://www.chess.com"]